[Event "Titled Tuesday Blitz May 18 2021"]
[White "Tabatabaei, M. Amin"]
[Black "Wagner, Dennis"]
[WhiteFideId "12521213"]
[BlackFideId "24650684"]
[WhiteElo "2555"]
[BlackElo "2355"]
[Result "1-0"]
[Round "04"]
[TimeControl "180+1"]
[Date "2021.05.18"]
[WhiteClock "0:00:36"]
[BlackClock "0:00:04"]

1. Nf3 {[%clk 0:03:00]}  g6 {[%clk 0:02:59]} 2. e4 {[%clk 0:02:59]}  Bg7 {[%clk 0:02:58]} 3. d4 {[%clk 0:02:59]}  d6 {[%clk 0:02:59]} 4. c4 {[%clk 0:02:58]}  Nf6 {[%clk 0:02:56]} 5. Nc3 {[%clk 0:02:58]}  O-O {[%clk 0:02:50]} 6. Be2 {[%clk 0:02:59]}  e5 {[%clk 0:02:50]} 7. O-O {[%clk 0:02:59]}  Nc6 {[%clk 0:02:51]} 8. d5 {[%clk 0:03:00]}  Ne7 {[%clk 0:02:51]} 9. b4 {[%clk 0:02:55]}  Nh5 {[%clk 0:02:43]} 10. Re1 {[%clk 0:02:53]}  f5 {[%clk 0:02:37]} 11. Ng5 {[%clk 0:02:50]}  Nf6 {[%clk 0:02:37]} 12. b5 {[%clk 0:02:50]}  h6 {[%clk 0:02:23]} 13. Ne6 {[%clk 0:02:50]}  Bxe6 {[%clk 0:02:22]} 14. dxe6 {[%clk 0:02:51]}  Nxe4 {[%clk 0:02:18]} 15. Nxe4 {[%clk 0:02:49]}  fxe4 {[%clk 0:02:19]} 16. Bg4 {[%clk 0:02:47]}  a6 {[%clk 0:02:01]} 17. bxa6 {[%clk 0:02:30]}  Rxa6 {[%clk 0:02:00]} 18. a4 {[%clk 0:02:31]}  Nf5 {[%clk 0:01:40]} 19. Rxe4 {[%clk 0:02:15]}  Qf6 {[%clk 0:01:39]} 20. c5 {[%clk 0:01:45]}  Qxe6 {[%clk 0:01:36]} 21. cxd6 {[%clk 0:01:46]}  cxd6 {[%clk 0:01:30]} 22. Ba3 {[%clk 0:01:44]}  Rd8 {[%clk 0:01:22]} 23. Rb4 {[%clk 0:01:41]}  d5 {[%clk 0:01:14]} 24. Rxb7 {[%clk 0:01:41]}  h5 {[%clk 0:01:06]} 25. Be2 {[%clk 0:01:40]}  Raa8 {[%clk 0:00:57]} 26. Bb2 {[%clk 0:01:39]}  Rab8 {[%clk 0:00:54]} 27. Rxb8 {[%clk 0:01:36]}  Rxb8 {[%clk 0:00:55]} 28. Qd2 {[%clk 0:01:31]}  e4 {[%clk 0:00:41]} 29. Bxg7 {[%clk 0:01:32]}  Kxg7 {[%clk 0:00:41]} 30. a5 {[%clk 0:01:32]}  Qe5 {[%clk 0:00:41]} 31. Qd1 {[%clk 0:01:10]}  Nd4 {[%clk 0:00:30]} 32. Bf1 {[%clk 0:01:10]}  e3 {[%clk 0:00:24]} 33. fxe3 {[%clk 0:01:11]}  Qxe3+ {[%clk 0:00:25]} 34. Kh1 {[%clk 0:01:11]}  Rb2 {[%clk 0:00:10]} 35. a6 {[%clk 0:01:10]}  Nf5 {[%clk 0:00:06]} 36. a7 {[%clk 0:01:01]}  Qf4 {[%clk 0:00:04]} 37. a8=Q {[%clk 0:00:51]}  Qh4 {[%clk 0:00:04]} 38. Qe1 {[%clk 0:00:36]} 1-0


[Site "https://www.chess.com"]

[Event "Titled Tuesday Blitz May 18 2021"]
[White "Vaishali, Rameshbabu"]
[Black "Abdrlauf, Elham"]
[WhiteFideId "5091756"]
[BlackFideId "1533533"]
[WhiteElo "2313"]
[BlackElo "2326"]
[Result "0-1"]
[Round "04"]
[TimeControl "180+1"]
[Date "2021.05.18"]
[WhiteClock "0:00:07"]
[BlackClock "0:00:58"]

1. e4 {[%clk 0:03:00]}  c6 {[%clk 0:02:58]} 2. d4 {[%clk 0:02:59]}  d5 {[%clk 0:02:59]} 3. e5 {[%clk 0:03:00]}  c5 {[%clk 0:02:59]} 4. Nf3 {[%clk 0:02:55]}  cxd4 {[%clk 0:02:59]} 5. Nxd4 {[%clk 0:02:54]}  Nc6 {[%clk 0:03:00]} 6. Bb5 {[%clk 0:02:51]}  Bd7 {[%clk 0:03:00]} 7. e6 {[%clk 0:02:34]}  fxe6 {[%clk 0:02:59]} 8. Nc3 {[%clk 0:02:34]}  Nf6 {[%clk 0:02:55]} 9. O-O {[%clk 0:02:33]}  e5 {[%clk 0:02:48]} 10. Nf3 {[%clk 0:02:29]}  e4 {[%clk 0:02:46]} 11. Nd4 {[%clk 0:02:12]}  e6 {[%clk 0:02:45]} 12. Bg5 {[%clk 0:01:56]}  Bd6 {[%clk 0:02:38]} 13. f3 {[%clk 0:01:47]}  exf3 {[%clk 0:02:10]} 14. Bxc6 {[%clk 0:01:20]}  bxc6 {[%clk 0:02:08]} 15. Bxf6 {[%clk 0:01:17]}  gxf6 {[%clk 0:01:49]} 16. Nxf3 {[%clk 0:01:06]}  O-O {[%clk 0:01:44]} 17. Nh4 {[%clk 0:00:49]}  Qe7 {[%clk 0:01:42]} 18. Qd3 {[%clk 0:00:31]}  f5 {[%clk 0:01:24]} 19. Qh3 {[%clk 0:00:25]}  f4 {[%clk 0:01:17]} 20. g3 {[%clk 0:00:20]}  e5 {[%clk 0:01:17]} 21. Qg2 {[%clk 0:00:20]}  Kh8 {[%clk 0:01:14]} 22. Rae1 {[%clk 0:00:18]}  fxg3 {[%clk 0:01:10]} 23. hxg3 {[%clk 0:00:19]}  Rxf1+ {[%clk 0:01:09]} 24. Rxf1 {[%clk 0:00:19]}  Rf8 {[%clk 0:01:09]} 25. Re1 {[%clk 0:00:18]}  Qg7 {[%clk 0:01:04]} 26. a3 {[%clk 0:00:12]}  e4 {[%clk 0:01:05]} 27. Ne2 {[%clk 0:00:11]}  Bc5+ {[%clk 0:01:00]} 28. Kh1 {[%clk 0:00:09]}  Rf2 {[%clk 0:01:00]} 29. Rf1 {[%clk 0:00:07]}  Rxg2 {[%clk 0:00:59]} 30. Kxg2 {[%clk 0:00:08]}  Bg4 {[%clk 0:00:59]} 31. Nf4 {[%clk 0:00:07]}  Bd6 {[%clk 0:00:58]} 0-1


[Site "https://www.chess.com"]

[Event "Titled Tuesday Blitz May 18 2021"]
[White "Abdrlauf, Elham"]
[Black "Tabatabaei, M. Amin"]
[WhiteFideId "1533533"]
[BlackFideId "12521213"]
[WhiteElo "2326"]
[BlackElo "2555"]
[Result "1-0"]
[Round "05"]
[TimeControl "180+1"]
[Date "2021.05.18"]
[WhiteClock "0:00:36"]
[BlackClock "0:00:06"]

1. e4 {[%clk 0:03:00]}  c5 {[%clk 0:02:59]} 2. Nf3 {[%clk 0:03:01]}  e6 {[%clk 0:02:59]} 3. c3 {[%clk 0:03:00]}  Nf6 {[%clk 0:02:57]} 4. e5 {[%clk 0:03:00]}  Nd5 {[%clk 0:02:57]} 5. d4 {[%clk 0:03:01]}  cxd4 {[%clk 0:02:58]} 6. cxd4 {[%clk 0:03:02]}  d6 {[%clk 0:02:59]} 7. exd6 {[%clk 0:03:03]}  Bxd6 {[%clk 0:02:58]} 8. Nc3 {[%clk 0:03:04]}  O-O {[%clk 0:02:58]} 9. Bd3 {[%clk 0:03:03]}  Nc6 {[%clk 0:02:54]} 10. O-O {[%clk 0:03:02]}  Nce7 {[%clk 0:02:48]} 11. Re1 {[%clk 0:02:47]}  Bd7 {[%clk 0:02:47]} 12. Ne4 {[%clk 0:02:45]}  Bc6 {[%clk 0:02:47]} 13. Ne5 {[%clk 0:02:35]}  Ng6 {[%clk 0:02:38]} 14. Qh5 {[%clk 0:02:23]}  Bxe5 {[%clk 0:02:27]} 15. dxe5 {[%clk 0:02:18]}  Ndf4 {[%clk 0:02:26]} 16. Bxf4 {[%clk 0:02:11]}  Qxd3 {[%clk 0:02:26]} 17. Rad1 {[%clk 0:01:27]}  Nxf4 {[%clk 0:01:41]} 18. Qg4 {[%clk 0:01:26]}  Qb5 {[%clk 0:00:49]} 19. Nf6+ {[%clk 0:01:10]}  Kh8 {[%clk 0:00:49]} 20. Qxf4 {[%clk 0:01:11]}  Qxb2 {[%clk 0:00:45]} 21. Rd3 {[%clk 0:01:01]}  Qc2 {[%clk 0:00:15]} 22. Rh3 {[%clk 0:00:47]}  Rad8 {[%clk 0:00:09]} 23. Rxh7+ {[%clk 0:00:35]}  Qxh7 {[%clk 0:00:06]} 24. Nxh7 {[%clk 0:00:36]} 1-0


[Site "https://www.chess.com"]

[Event "Titled Tuesday Blitz May 18 2021"]
[White "Bortnyk, Olexandr"]
[Black "Bluebaum, Matthias"]
[WhiteFideId "14120828"]
[BlackFideId "24651516"]
[WhiteElo "2723"]
[BlackElo "2685"]
[Result "1/2-1/2"]
[Round "05"]
[TimeControl "180+1"]
[Date "2021.05.18"]
[WhiteClock "0:00:04"]
[BlackClock "0:00:06"]

1. e4 {[%clk 0:03:00]}  e6 {[%clk 0:02:58]} 2. d4 {[%clk 0:02:59]}  d5 {[%clk 0:02:59]} 3. Nc3 {[%clk 0:02:59]}  Nf6 {[%clk 0:02:59]} 4. Bg5 {[%clk 0:02:58]}  dxe4 {[%clk 0:03:00]} 5. Nxe4 {[%clk 0:02:59]}  Be7 {[%clk 0:03:00]} 6. Bxf6 {[%clk 0:02:59]}  gxf6 {[%clk 0:03:01]} 7. Nf3 {[%clk 0:03:00]}  f5 {[%clk 0:03:01]} 8. Nc3 {[%clk 0:03:00]}  a6 {[%clk 0:03:02]} 9. Qd3 {[%clk 0:03:01]}  b5 {[%clk 0:02:52]} 10. O-O-O {[%clk 0:03:01]}  Qd6 {[%clk 0:02:51]} 11. Qe3 {[%clk 0:02:54]}  Nd7 {[%clk 0:02:48]} 12. Bd3 {[%clk 0:02:46]}  Bb7 {[%clk 0:02:41]} 13. d5 {[%clk 0:02:39]}  b4 {[%clk 0:02:22]} 14. dxe6 {[%clk 0:02:36]}  Qxe6 {[%clk 0:02:21]} 15. Qd4 {[%clk 0:01:54]}  O-O-O {[%clk 0:01:51]} 16. Rhe1 {[%clk 0:01:46]}  Qh6+ {[%clk 0:01:50]} 17. Kb1 {[%clk 0:01:47]}  Bc5 {[%clk 0:01:49]} 18. Qc4 {[%clk 0:01:33]}  bxc3 {[%clk 0:01:41]} 19. Bxf5 {[%clk 0:01:33]}  Qb6 {[%clk 0:01:27]} 20. Qxc3 {[%clk 0:01:26]}  Bb4 {[%clk 0:01:11]} 21. Bxd7+ {[%clk 0:00:24]}  Kb8 {[%clk 0:01:11]} 22. Qe3 {[%clk 0:00:21]}  Bxe1 {[%clk 0:00:59]} 23. Qxe1 {[%clk 0:00:22]}  Rhg8 {[%clk 0:00:33]} 24. Ne5 {[%clk 0:00:20]}  Rxg2 {[%clk 0:00:20]} 25. Bh3 {[%clk 0:00:20]}  Rxd1+ {[%clk 0:00:07]} 26. Qxd1 {[%clk 0:00:21]}  Qxf2 {[%clk 0:00:06]} 27. Bxg2 {[%clk 0:00:21]}  Bxg2 {[%clk 0:00:04]} 28. b3 {[%clk 0:00:14]}  f6 {[%clk 0:00:02]} 29. Qd8+ {[%clk 0:00:12]}  Kb7 {[%clk 0:00:02]} 30. Nd3 {[%clk 0:00:10]}  Qg1+ {[%clk 0:00:02]} 31. Kb2 {[%clk 0:00:10]}  Qxh2 {[%clk 0:00:03]} 32. Nc5+ {[%clk 0:00:10]}  Kc6 {[%clk 0:00:03]} 33. Nxa6 {[%clk 0:00:09]}  Qe5+ {[%clk 0:00:03]} 34. Kb1 {[%clk 0:00:06]}  Qe1+ {[%clk 0:00:04]} 35. Kb2 {[%clk 0:00:07]}  Qe5+ {[%clk 0:00:05]} 36. Kb1 {[%clk 0:00:03]}  Qe1+ {[%clk 0:00:05]} 37. Kb2 {[%clk 0:00:04]}  Qe5+ {[%clk 0:00:06]} 1/2-1/2


[Site "https://www.chess.com"]

[Event "Titled Tuesday Blitz May 18 2021"]
[White "Eljanov, Pavel"]
[Black "Matsenko, Andrei"]
[WhiteFideId "14102951"]
[BlackFideId "24146501"]
[WhiteElo "2602"]
[BlackElo "2228"]
[Result "1/2-1/2"]
[Round "05"]
[TimeControl "180+1"]
[Date "2021.05.18"]
[WhiteClock "0:00:04"]
[BlackClock "0:00:23"]

1. e4 {[%clk 0:02:57]}  c6 {[%clk 0:02:49]} 2. Nf3 {[%clk 0:02:53]}  d5 {[%clk 0:02:50]} 3. d3 {[%clk 0:02:53]}  dxe4 {[%clk 0:02:51]} 4. dxe4 {[%clk 0:02:53]}  Qxd1+ {[%clk 0:02:52]} 5. Kxd1 {[%clk 0:02:53]}  Nf6 {[%clk 0:02:51]} 6. Nbd2 {[%clk 0:02:51]}  Bg4 {[%clk 0:02:46]} 7. Be2 {[%clk 0:02:45]}  Nbd7 {[%clk 0:02:46]} 8. Ne1 {[%clk 0:02:41]}  Bxe2+ {[%clk 0:02:46]} 9. Kxe2 {[%clk 0:02:41]}  O-O-O {[%clk 0:02:47]} 10. f3 {[%clk 0:02:36]}  g5 {[%clk 0:02:44]} 11. Nd3 {[%clk 0:02:25]}  h5 {[%clk 0:02:43]} 12. Nc4 {[%clk 0:02:20]}  g4 {[%clk 0:02:43]} 13. Nce5 {[%clk 0:02:17]}  Nxe5 {[%clk 0:02:37]} 14. Nxe5 {[%clk 0:02:18]}  Rh7 {[%clk 0:02:36]} 15. Be3 {[%clk 0:02:18]}  a6 {[%clk 0:02:28]} 16. Rad1 {[%clk 0:02:16]}  Rxd1 {[%clk 0:02:27]} 17. Rxd1 {[%clk 0:02:16]}  e6 {[%clk 0:02:28]} 18. Nc4 {[%clk 0:01:32]}  Nd7 {[%clk 0:02:22]} 19. Bf4 {[%clk 0:01:24]}  Bc5 {[%clk 0:02:17]} 20. Nd6+ {[%clk 0:01:18]}  Bxd6 {[%clk 0:02:17]} 21. Bxd6 {[%clk 0:01:16]}  gxf3+ {[%clk 0:02:17]} 22. gxf3 {[%clk 0:01:14]}  Rg7 {[%clk 0:02:17]} 23. Kf2 {[%clk 0:01:14]}  f6 {[%clk 0:02:14]} 24. Rg1 {[%clk 0:01:06]}  Rxg1 {[%clk 0:02:09]} 25. Kxg1 {[%clk 0:01:07]}  Kd8 {[%clk 0:02:09]} 26. Kg2 {[%clk 0:01:07]}  Ke8 {[%clk 0:02:10]} 27. Kg3 {[%clk 0:01:04]}  Kf7 {[%clk 0:02:11]} 28. Kf4 {[%clk 0:01:02]}  Kg6 {[%clk 0:02:10]} 29. a4 {[%clk 0:01:02]}  b5 {[%clk 0:02:08]} 30. axb5 {[%clk 0:00:55]}  axb5 {[%clk 0:02:05]} 31. b3 {[%clk 0:00:55]}  Nb6 {[%clk 0:02:03]} 32. Ke3 {[%clk 0:00:54]}  Kg5 {[%clk 0:02:01]} 33. Kd4 {[%clk 0:00:41]}  Nd7 {[%clk 0:02:01]} 34. Bg3 {[%clk 0:00:41]}  h4 {[%clk 0:01:51]} 35. Bf2 {[%clk 0:00:37]}  Kf4 {[%clk 0:01:47]} 36. Bxh4 {[%clk 0:00:36]}  Kxf3 {[%clk 0:01:47]} 37. b4 {[%clk 0:00:13]}  e5+ {[%clk 0:01:19]} 38. Kd3 {[%clk 0:00:12]}  c5 {[%clk 0:01:19]} 39. bxc5 {[%clk 0:00:08]}  Nxc5+ {[%clk 0:01:20]} 40. Kc3 {[%clk 0:00:08]}  Nxe4+ {[%clk 0:01:07]} 41. Kb4 {[%clk 0:00:08]}  f5 {[%clk 0:01:07]} 42. Kxb5 {[%clk 0:00:08]}  Kg2 {[%clk 0:01:06]} 43. c4 {[%clk 0:00:07]}  f4 {[%clk 0:01:05]} 44. c5 {[%clk 0:00:07]}  f3 {[%clk 0:00:37]} 45. c6 {[%clk 0:00:06]}  Kxh2 {[%clk 0:00:21]} 46. c7 {[%clk 0:00:06]}  Nd6+ {[%clk 0:00:22]} 47. Kc6 {[%clk 0:00:06]}  Nc8 {[%clk 0:00:22]} 48. Kd5 {[%clk 0:00:06]}  Kh3 {[%clk 0:00:19]} 49. Be1 {[%clk 0:00:04]}  Kg2 {[%clk 0:00:20]} 50. Kxe5 {[%clk 0:00:04]}  f2 {[%clk 0:00:20]} 51. Bxf2 {[%clk 0:00:05]}  Kxf2 {[%clk 0:00:21]} 52. Ke6 {[%clk 0:00:05]}  Ke3 {[%clk 0:00:22]} 53. Kd7 {[%clk 0:00:05]}  Na7 {[%clk 0:00:22]} 54. c8=Q {[%clk 0:00:04]}  Nxc8 {[%clk 0:00:23]} 1/2-1/2


[Site "https://www.chess.com"]

[Event "Titled Tuesday Blitz May 18 2021"]
[White "Grandelius, Nils"]
[Black "Oparin, Grigoriy"]
[WhiteFideId "1710400"]
[BlackFideId "24125890"]
[WhiteElo "2651"]
[BlackElo "2628"]
[Result "1/2-1/2"]
[Round "05"]
[TimeControl "180+1"]
[Date "2021.05.18"]
[WhiteClock "0:00:04"]
[BlackClock "0:00:52"]

1. Nf3 {[%clk 0:03:00]}  c6 {[%clk 0:03:00]} 2. g3 {[%clk 0:03:00]}  d5 {[%clk 0:03:01]} 3. Bg2 {[%clk 0:03:01]}  Bg4 {[%clk 0:03:01]} 4. h3 {[%clk 0:03:01]}  Bh5 {[%clk 0:03:00]} 5. O-O {[%clk 0:03:01]}  Nd7 {[%clk 0:03:01]} 6. d4 {[%clk 0:03:00]}  e6 {[%clk 0:03:00]} 7. c4 {[%clk 0:03:01]}  Ngf6 {[%clk 0:03:01]} 8. cxd5 {[%clk 0:03:00]}  exd5 {[%clk 0:03:01]} 9. Ne5 {[%clk 0:03:00]}  Bg6 {[%clk 0:02:58]} 10. Nc3 {[%clk 0:02:47]}  Bb4 {[%clk 0:02:53]} 11. Qb3 {[%clk 0:02:45]}  a5 {[%clk 0:02:37]} 12. a3 {[%clk 0:02:35]}  Bxc3 {[%clk 0:02:37]} 13. bxc3 {[%clk 0:02:36]}  Qc8 {[%clk 0:02:29]} 14. c4 {[%clk 0:02:26]}  dxc4 {[%clk 0:01:50]} 15. Nxc4 {[%clk 0:02:21]}  O-O {[%clk 0:01:51]} 16. Nd6 {[%clk 0:02:07]}  Qb8 {[%clk 0:01:50]} 17. Nxb7 {[%clk 0:01:43]}  Ra7 {[%clk 0:01:43]} 18. Nc5 {[%clk 0:01:40]}  Nxc5 {[%clk 0:01:40]} 19. Qxb8 {[%clk 0:01:39]}  Rxb8 {[%clk 0:01:41]} 20. dxc5 {[%clk 0:01:40]}  Be4 {[%clk 0:01:41]} 21. Bf4 {[%clk 0:01:33]}  Re8 {[%clk 0:01:40]} 22. f3 {[%clk 0:01:30]}  Bc2 {[%clk 0:01:37]} 23. e4 {[%clk 0:01:27]}  a4 {[%clk 0:01:37]} 24. Rf2 {[%clk 0:01:25]}  Bb3 {[%clk 0:01:37]} 25. Rd2 {[%clk 0:01:24]}  h6 {[%clk 0:01:37]} 26. Kf2 {[%clk 0:01:22]}  Nd7 {[%clk 0:01:34]} 27. Bd6 {[%clk 0:01:19]}  Ne5 {[%clk 0:01:33]} 28. Bf1 {[%clk 0:01:15]}  Nc4 {[%clk 0:01:27]} 29. Bxc4 {[%clk 0:00:52]}  Bxc4 {[%clk 0:01:28]} 30. Rb1 {[%clk 0:00:52]}  Bb3 {[%clk 0:01:27]} 31. g4 {[%clk 0:00:49]}  f6 {[%clk 0:01:26]} 32. Rd4 {[%clk 0:00:49]}  g5 {[%clk 0:01:25]} 33. Rb4 {[%clk 0:00:46]}  Kf7 {[%clk 0:01:23]} 34. Rb2 {[%clk 0:00:46]}  h5 {[%clk 0:01:18]} 35. Rb6 {[%clk 0:00:30]}  Rc8 {[%clk 0:01:16]} 36. Rd2 {[%clk 0:00:21]}  hxg4 {[%clk 0:01:15]} 37. hxg4 {[%clk 0:00:22]}  Rd7 {[%clk 0:01:13]} 38. Ke3 {[%clk 0:00:22]}  Kg6 {[%clk 0:01:13]} 39. Rd4 {[%clk 0:00:19]}  Kf7 {[%clk 0:01:00]} 40. Rdb4 {[%clk 0:00:18]}  Kg6 {[%clk 0:01:01]} 41. Rb7 {[%clk 0:00:18]}  Rxb7 {[%clk 0:01:00]} 42. Rxb7 {[%clk 0:00:19]}  Bc4 {[%clk 0:01:00]} 43. e5 {[%clk 0:00:12]}  Re8 {[%clk 0:00:59]} 44. Kd4 {[%clk 0:00:12]}  Bd5 {[%clk 0:00:55]} 45. exf6 {[%clk 0:00:10]}  Kxf6 {[%clk 0:00:55]} 46. Rb8 {[%clk 0:00:03]}  Rxb8 {[%clk 0:00:52]} 47. Bxb8 {[%clk 0:00:04]} 1/2-1/2


[Site "https://www.chess.com"]

[Event "Titled Tuesday Blitz May 18 2021"]
[White "Hansen, Eric"]
[Black "Korchmar, Vasiliy"]
[WhiteFideId "2606771"]
[BlackFideId "24131750"]
[WhiteElo "2568"]
[BlackElo "2370"]
[Result "1-0"]
[Round "05"]
[TimeControl "180+1"]
[Date "2021.05.18"]
[WhiteClock "0:02:11"]
[BlackClock "0:00:47"]

1. e4 {[%clk 0:02:57]}  c5 {[%clk 0:03:00]} 2. Nf3 {[%clk 0:02:56]}  d6 {[%clk 0:03:00]} 3. c3 {[%clk 0:02:53]}  Nf6 {[%clk 0:02:59]} 4. Be2 {[%clk 0:02:54]}  g6 {[%clk 0:02:55]} 5. O-O {[%clk 0:02:54]}  Bg7 {[%clk 0:02:55]} 6. Re1 {[%clk 0:02:54]}  O-O {[%clk 0:02:55]} 7. Bf1 {[%clk 0:02:55]}  Nc6 {[%clk 0:02:53]} 8. h3 {[%clk 0:02:55]}  e5 {[%clk 0:02:20]} 9. a3 {[%clk 0:02:49]}  Be6 {[%clk 0:02:14]} 10. d3 {[%clk 0:02:44]}  h6 {[%clk 0:02:10]} 11. b4 {[%clk 0:02:44]}  b6 {[%clk 0:02:03]} 12. Bb2 {[%clk 0:02:44]}  Rc8 {[%clk 0:02:01]} 13. Nbd2 {[%clk 0:02:43]}  Qd7 {[%clk 0:01:54]} 14. b5 {[%clk 0:02:37]}  Na5 {[%clk 0:01:47]} 15. d4 {[%clk 0:02:38]}  cxd4 {[%clk 0:01:35]} 16. cxd4 {[%clk 0:02:38]}  Nc4 {[%clk 0:01:24]} 17. Bxc4 {[%clk 0:02:34]}  Bxc4 {[%clk 0:01:25]} 18. dxe5 {[%clk 0:02:35]}  dxe5 {[%clk 0:01:18]} 19. Nxe5 {[%clk 0:02:34]}  Qxb5 {[%clk 0:01:14]} 20. Nexc4 {[%clk 0:02:35]}  Rxc4 {[%clk 0:01:13]} 21. Nxc4 {[%clk 0:02:36]}  Qxc4 {[%clk 0:01:14]} 22. Qf3 {[%clk 0:02:36]}  Nh5 {[%clk 0:01:08]} 23. Bxg7 {[%clk 0:02:35]}  Nxg7 {[%clk 0:01:09]} 24. a4 {[%clk 0:02:36]}  Ne6 {[%clk 0:01:10]} 25. a5 {[%clk 0:02:35]}  Nd4 {[%clk 0:01:09]} 26. Qf6 {[%clk 0:02:28]}  b5 {[%clk 0:01:04]} 27. Rad1 {[%clk 0:02:20]}  Nc2 {[%clk 0:00:49]} 28. Rf1 {[%clk 0:02:15]}  b4 {[%clk 0:00:49]} 29. Rd8 {[%clk 0:02:13]}  b3 {[%clk 0:00:46]} 30. Rxf8+ {[%clk 0:02:11]}  Kxf8 {[%clk 0:00:47]} 31. Rd1 {[%clk 0:02:11]} 1-0


[Site "https://www.chess.com"]

[Event "Titled Tuesday Blitz May 18 2021"]
[White "Kamsky, Gata"]
[Black "Praggnanandhaa R"]
[WhiteFideId "2000024"]
[BlackFideId "25059530"]
[WhiteElo "2644"]
[BlackElo "2555"]
[Result "0-1"]
[Round "05"]
[TimeControl "180+1"]
[Date "2021.05.18"]
[WhiteClock "0:00:20"]
[BlackClock "0:01:18"]

1. e4 {[%clk 0:03:00]}  e5 {[%clk 0:02:56]} 2. Nf3 {[%clk 0:03:00]}  Nc6 {[%clk 0:02:56]} 3. Bb5 {[%clk 0:03:00]}  a6 {[%clk 0:02:57]} 4. Ba4 {[%clk 0:03:00]}  Bc5 {[%clk 0:02:57]} 5. O-O {[%clk 0:02:59]}  d6 {[%clk 0:02:54]} 6. c3 {[%clk 0:02:59]}  Bd7 {[%clk 0:02:54]} 7. d4 {[%clk 0:02:58]}  Ba7 {[%clk 0:02:54]} 8. Re1 {[%clk 0:02:51]}  Nge7 {[%clk 0:02:51]} 9. Be3 {[%clk 0:02:49]}  Ng6 {[%clk 0:02:44]} 10. Nbd2 {[%clk 0:02:47]}  O-O {[%clk 0:02:42]} 11. Nf1 {[%clk 0:02:41]}  exd4 {[%clk 0:02:25]} 12. cxd4 {[%clk 0:02:09]}  b5 {[%clk 0:02:15]} 13. Bb3 {[%clk 0:02:06]}  Bg4 {[%clk 0:02:16]} 14. d5 {[%clk 0:01:59]}  Nce5 {[%clk 0:02:09]} 15. Bxa7 {[%clk 0:01:42]}  Bxf3 {[%clk 0:02:06]} 16. Qd4 {[%clk 0:01:14]}  Nf4 {[%clk 0:01:47]} 17. Re3 {[%clk 0:00:36]}  Nxg2 {[%clk 0:01:33]} 18. Ng3 {[%clk 0:00:24]}  Nxe3 {[%clk 0:01:19]} 19. Qxe3 {[%clk 0:00:24]}  Qh4 {[%clk 0:01:19]} 20. Bd4 {[%clk 0:00:20]}  Qh3 {[%clk 0:01:18]} 0-1


[Site "https://www.chess.com"]

[Event "Titled Tuesday Blitz May 18 2021"]
[White "Lazavik, Denis"]
[Black "Morefield, Jason"]
[WhiteFideId "13515110"]
[BlackFideId "30920825"]
[WhiteElo "2436"]
[BlackElo "2171"]
[Result "1-0"]
[Round "05"]
[TimeControl "180+1"]
[Date "2021.05.18"]
[WhiteClock "0:00:24"]
[BlackClock "0:00:21"]

1. d4 {[%clk 0:03:00]}  d5 {[%clk 0:02:59]} 2. c4 {[%clk 0:03:00]}  c6 {[%clk 0:02:59]} 3. Nf3 {[%clk 0:02:59]}  Nf6 {[%clk 0:03:00]} 4. e3 {[%clk 0:02:58]}  e6 {[%clk 0:02:59]} 5. b3 {[%clk 0:02:58]}  Ne4 {[%clk 0:02:58]} 6. Bd3 {[%clk 0:02:50]}  Bb4+ {[%clk 0:02:52]} 7. Nbd2 {[%clk 0:02:44]}  Nd7 {[%clk 0:02:49]} 8. a3 {[%clk 0:02:33]}  Bc3 {[%clk 0:02:09]} 9. Ra2 {[%clk 0:02:10]}  O-O {[%clk 0:01:59]} 10. O-O {[%clk 0:02:07]}  f5 {[%clk 0:01:57]} 11. b4 {[%clk 0:01:55]}  a5 {[%clk 0:01:41]} 12. b5 {[%clk 0:01:55]}  cxb5 {[%clk 0:01:32]} 13. cxd5 {[%clk 0:01:50]}  exd5 {[%clk 0:01:33]} 14. Bxb5 {[%clk 0:01:49]}  Ndf6 {[%clk 0:01:24]} 15. Nb1 {[%clk 0:01:38]}  Bd7 {[%clk 0:01:17]} 16. Bxd7 {[%clk 0:01:28]}  Qxd7 {[%clk 0:01:16]} 17. Ne5 {[%clk 0:01:29]}  Qc7 {[%clk 0:01:11]} 18. f3 {[%clk 0:01:28]}  Qb6 {[%clk 0:01:02]} 19. Qd3 {[%clk 0:00:56]}  Rac8 {[%clk 0:00:56]} 20. fxe4 {[%clk 0:00:49]}  fxe4 {[%clk 0:00:57]} 21. Qxc3 {[%clk 0:00:43]}  Rxc3 {[%clk 0:00:56]} 22. Nxc3 {[%clk 0:00:44]}  Qb3 {[%clk 0:00:52]} 23. Bd2 {[%clk 0:00:42]}  Rc8 {[%clk 0:00:51]} 24. Rb1 {[%clk 0:00:38]}  Rxc3 {[%clk 0:00:40]} 25. Rxb3 {[%clk 0:00:37]}  Rxb3 {[%clk 0:00:41]} 26. Kf2 {[%clk 0:00:34]}  b6 {[%clk 0:00:39]} 27. a4 {[%clk 0:00:33]}  Ne8 {[%clk 0:00:37]} 28. Rc2 {[%clk 0:00:33]}  Ra3 {[%clk 0:00:27]} 29. Rc8 {[%clk 0:00:29]}  Kf8 {[%clk 0:00:27]} 30. Nd7+ {[%clk 0:00:30]}  Ke7 {[%clk 0:00:27]} 31. Nxb6 {[%clk 0:00:31]}  Nd6 {[%clk 0:00:23]} 32. Rc7+ {[%clk 0:00:30]}  Ke6 {[%clk 0:00:23]} 33. Bxa5 {[%clk 0:00:30]}  Ra2+ {[%clk 0:00:23]} 34. Kf1 {[%clk 0:00:25]}  Nf5 {[%clk 0:00:21]} 35. Rc6+ {[%clk 0:00:25]}  Kf7 {[%clk 0:00:20]} 36. Nxd5 {[%clk 0:00:26]}  Rxa4 {[%clk 0:00:20]} 37. Bd2 {[%clk 0:00:25]}  Ra2 {[%clk 0:00:21]} 38. Ke2 {[%clk 0:00:24]} 1-0


[Site "https://www.chess.com"]